[Event "Titled Tuesday Blitz May 16 Early 2023"]
[White "Goncalves, Davi Sulzbacher"]
[Black "Domingo Nunez, Alejandro"]
[WhiteFideId "2154510"]
[BlackFideId "22245561"]
[WhiteElo "2182"]
[BlackElo "2291"]
[Result "1-0"]
[Round "08"]
[TimeControl "180+2"]
[Date "2023.05.16"]
[WhiteClock "0:00:19"]
[BlackClock "0:00:02"]

1. Nf3 {[%clk 0:02:56]}  g6 {[%clk 0:03:00]} 2. g3 {[%clk 0:02:57]}  Bg7 {[%clk 0:03:00]} 3. Bg2 {[%clk 0:02:58]}  Nf6 {[%clk 0:03:00]} 4. O-O {[%clk 0:02:58]}  O-O {[%clk 0:03:01]} 5. d4 {[%clk 0:02:59]}  d6 {[%clk 0:03:01]} 6. c4 {[%clk 0:03:00]}  Nbd7 {[%clk 0:03:02]} 7. Nc3 {[%clk 0:03:00]}  c5 {[%clk 0:03:03]} 8. d5 {[%clk 0:03:00]}  a6 {[%clk 0:03:03]} 9. Re1 {[%clk 0:02:56]}  Rb8 {[%clk 0:02:55]} 10. a4 {[%clk 0:02:55]}  b6 {[%clk 0:02:55]} 11. e4 {[%clk 0:02:54]}  Ne8 {[%clk 0:02:56]} 12. Bf4 {[%clk 0:02:53]}  Ne5 {[%clk 0:02:56]} 13. Nxe5 {[%clk 0:02:49]}  dxe5 {[%clk 0:02:57]} 14. Be3 {[%clk 0:02:45]}  Nd6 {[%clk 0:02:58]} 15. b3 {[%clk 0:02:46]}  f5 {[%clk 0:02:59]} 16. f3 {[%clk 0:02:44]}  f4 {[%clk 0:02:56]} 17. Bf2 {[%clk 0:02:44]}  a5 {[%clk 0:02:49]} 18. Qd3 {[%clk 0:02:39]}  g5 {[%clk 0:02:44]} 19. g4 {[%clk 0:02:36]}  h5 {[%clk 0:02:44]} 20. h3 {[%clk 0:02:37]}  hxg4 {[%clk 0:02:44]} 21. hxg4 {[%clk 0:02:37]}  Kf7 {[%clk 0:02:41]} 22. Kf1 {[%clk 0:02:36]}  Rh8 {[%clk 0:02:42]} 23. Ke2 {[%clk 0:02:37]}  Rh2 {[%clk 0:02:42]} 24. Rg1 {[%clk 0:02:37]}  Qh8 {[%clk 0:02:40]} 25. Nb5 {[%clk 0:02:29]}  Bd7 {[%clk 0:02:40]} 26. Nc7 {[%clk 0:02:08]}  Rc8 {[%clk 0:02:24]} 27. Ne6 {[%clk 0:02:08]}  Bxe6 {[%clk 0:02:10]} 28. dxe6+ {[%clk 0:02:09]}  Kf6 {[%clk 0:02:11]} 29. Rh1 {[%clk 0:02:08]}  Qh6 {[%clk 0:01:51]} 30. Rag1 {[%clk 0:01:42]}  Kxe6 {[%clk 0:01:36]} 31. Qd5+ {[%clk 0:01:39]}  Kd7 {[%clk 0:01:36]} 32. Rd1 {[%clk 0:01:09]}  Ke8 {[%clk 0:01:36]} 33. Qg8+ {[%clk 0:00:56]}  Kd7 {[%clk 0:01:22]} 34. Rxh2 {[%clk 0:00:56]}  Rxg8 {[%clk 0:01:20]} 35. Rxh6 {[%clk 0:00:57]}  Bxh6 {[%clk 0:01:21]} 36. Rh1 {[%clk 0:00:57]}  Nf7 {[%clk 0:01:21]} 37. Be1 {[%clk 0:00:56]}  Ke6 {[%clk 0:01:18]} 38. Bc3 {[%clk 0:00:56]}  Rd8 {[%clk 0:01:16]} 39. Bf1 {[%clk 0:00:54]}  Kf6 {[%clk 0:01:09]} 40. Ke1 {[%clk 0:00:54]}  Kg6 {[%clk 0:01:03]} 41. Be2 {[%clk 0:00:54]}  Bg7 {[%clk 0:00:55]} 42. Rh2 {[%clk 0:00:49]}  Rd6 {[%clk 0:00:50]} 43. Bd1 {[%clk 0:00:46]}  Rd7 {[%clk 0:00:46]} 44. Bc2 {[%clk 0:00:45]}  Rd8 {[%clk 0:00:43]} 45. Ke2 {[%clk 0:00:44]}  Rd7 {[%clk 0:00:41]} 46. Rh1 {[%clk 0:00:31]}  Nd6 {[%clk 0:00:39]} 47. Rh2 {[%clk 0:00:31]}  Ne8 {[%clk 0:00:38]} 48. Rh1 {[%clk 0:00:31]}  Nc7 {[%clk 0:00:38]} 49. Rd1 {[%clk 0:00:31]}  Rd4 {[%clk 0:00:16]} 50. Bxd4 {[%clk 0:00:27]}  cxd4 {[%clk 0:00:16]} 51. Rh1 {[%clk 0:00:25]}  Na6 {[%clk 0:00:17]} 52. Bd1 {[%clk 0:00:24]}  Bf6 {[%clk 0:00:15]} 53. Kd2 {[%clk 0:00:21]}  Nb4 {[%clk 0:00:12]} 54. Be2 {[%clk 0:00:21]}  Kf7 {[%clk 0:00:12]} 55. Rc1 {[%clk 0:00:21]}  Ke6 {[%clk 0:00:12]} 56. c5 {[%clk 0:00:22]}  bxc5 {[%clk 0:00:03]} 57. Rxc5 {[%clk 0:00:23]}  Na2 {[%clk 0:00:03]} 58. Rxa5 {[%clk 0:00:23]}  Nc3 {[%clk 0:00:03]} 59. Bc4+ {[%clk 0:00:22]}  Kd6 {[%clk 0:00:04]} 60. Ra6+ {[%clk 0:00:21]}  Kc5 {[%clk 0:00:05]} 61. Ra8 {[%clk 0:00:20]}  Kb4 {[%clk 0:00:06]} 62. Rb8+ {[%clk 0:00:20]}  Ka3 {[%clk 0:00:06]} 63. a5 {[%clk 0:00:20]}  Nb1+ {[%clk 0:00:06]} 64. Kd3 {[%clk 0:00:20]}  Kb2 {[%clk 0:00:06]} 65. a6 {[%clk 0:00:20]}  Na3 {[%clk 0:00:04]} 66. a7 {[%clk 0:00:20]}  Kc1 {[%clk 0:00:05]} 67. a8=Q {[%clk 0:00:20]}  Nc2 {[%clk 0:00:05]} 68. Qa2 {[%clk 0:00:20]}  Ne1+ {[%clk 0:00:04]} 69. Ke2 {[%clk 0:00:19]}  Nc2 {[%clk 0:00:02]} 70. Bd3 {[%clk 0:00:19]} 1-0


[Site "https://www.chess.com"]

[Event "Titled Tuesday Blitz May 16 Early 2023"]
[White "Moksh Amit Doshi"]
[Black "Wimalasuriya, Kasun M."]
[WhiteFideId "25064967"]
[BlackFideId "9906789"]
[WhiteElo "2297"]
[BlackElo "2272"]
[Result "1-0"]
[Round "08"]
[TimeControl "180+2"]
[Date "2023.05.16"]
[WhiteClock "0:00:23"]
[BlackClock "0:01:01"]

1. e4 {[%clk 0:02:54]}  c5 {[%clk 0:02:58]} 2. Nf3 {[%clk 0:02:54]}  Nc6 {[%clk 0:02:57]} 3. Bb5 {[%clk 0:02:52]}  g6 {[%clk 0:02:56]} 4. O-O {[%clk 0:02:49]}  Bg7 {[%clk 0:02:56]} 5. c3 {[%clk 0:02:49]}  Nf6 {[%clk 0:02:54]} 6. Re1 {[%clk 0:02:49]}  O-O {[%clk 0:02:53]} 7. d4 {[%clk 0:02:49]}  cxd4 {[%clk 0:02:53]} 8. cxd4 {[%clk 0:02:49]}  d5 {[%clk 0:02:52]} 9. e5 {[%clk 0:02:48]}  Ne4 {[%clk 0:02:52]} 10. Be3 {[%clk 0:02:48]}  Bd7 {[%clk 0:02:46]} 11. Bd3 {[%clk 0:02:21]}  Bf5 {[%clk 0:02:42]} 12. a3 {[%clk 0:02:18]}  Rc8 {[%clk 0:02:40]} 13. h3 {[%clk 0:02:14]}  Qb6 {[%clk 0:02:29]} 14. b4 {[%clk 0:02:14]}  Qc7 {[%clk 0:02:24]} 15. Qb3 {[%clk 0:02:11]}  Rfd8 {[%clk 0:02:23]} 16. a4 {[%clk 0:02:06]}  h5 {[%clk 0:02:21]} 17. Na3 {[%clk 0:02:05]}  a6 {[%clk 0:02:20]} 18. Rec1 {[%clk 0:02:00]}  Qb8 {[%clk 0:02:19]} 19. b5 {[%clk 0:01:45]}  axb5 {[%clk 0:02:14]} 20. axb5 {[%clk 0:01:46]}  Na5 {[%clk 0:02:12]} 21. Qb4 {[%clk 0:01:46]}  b6 {[%clk 0:02:10]} 22. Qxe7 {[%clk 0:01:46]}  Bf8 {[%clk 0:02:08]} 23. Qh4 {[%clk 0:01:43]}  Rxc1+ {[%clk 0:02:04]} 24. Bxc1 {[%clk 0:01:32]}  Nb3 {[%clk 0:02:03]} 25. Rb1 {[%clk 0:01:19]}  Nxc1 {[%clk 0:02:03]} 26. Rxc1 {[%clk 0:01:20]}  Bxa3 {[%clk 0:02:02]} 27. Rc6 {[%clk 0:01:21]}  Bd7 {[%clk 0:01:56]} 28. Rc2 {[%clk 0:01:15]}  Bf5 {[%clk 0:01:55]} 29. g4 {[%clk 0:01:13]}  Be6 {[%clk 0:01:44]} 30. gxh5 {[%clk 0:01:11]}  Rc8 {[%clk 0:01:41]} 31. hxg6 {[%clk 0:01:10]}  fxg6 {[%clk 0:01:40]} 32. Bxe4 {[%clk 0:01:10]}  dxe4 {[%clk 0:01:40]} 33. Qxe4 {[%clk 0:01:11]}  Bf5 {[%clk 0:01:37]} 34. Qd5+ {[%clk 0:01:11]}  Kg7 {[%clk 0:01:36]} 35. Ra2 {[%clk 0:01:07]}  Rc1+ {[%clk 0:01:30]} 36. Kg2 {[%clk 0:01:06]}  Qh8 {[%clk 0:01:28]} 37. Qb7+ {[%clk 0:01:00]}  Kg8 {[%clk 0:01:25]} 38. Ng5 {[%clk 0:00:54]}  Qh5 {[%clk 0:01:24]} 39. Qd5+ {[%clk 0:00:37]}  Kh8 {[%clk 0:01:22]} 40. Qd8+ {[%clk 0:00:29]}  Kg7 {[%clk 0:01:18]} 41. Qf6+ {[%clk 0:00:29]}  Kg8 {[%clk 0:01:18]} 42. Rxa3 {[%clk 0:00:26]}  Bxh3+ {[%clk 0:01:05]} 43. Rxh3 {[%clk 0:00:24]}  Qg4+ {[%clk 0:01:01]} 44. Rg3 {[%clk 0:00:23]} 1-0


[Site "https://www.chess.com"]

[Event "Titled Tuesday Blitz May 16 Early 2023"]
[White "Altman, Joshua"]
[Black "Aydincelebi, Kagan"]
[WhiteFideId "426210"]
[BlackFideId "6361102"]
[WhiteElo "2028"]
[BlackElo "2180"]
[Result "0-1"]
[Round "08"]
[TimeControl "180+2"]
[Date "2023.05.16"]
[WhiteClock "0:00:21"]
[BlackClock "0:01:15"]

1. d4 {[%clk 0:03:00]}  Nf6 {[%clk 0:03:00]} 2. c4 {[%clk 0:03:00]}  e6 {[%clk 0:03:00]} 3. Nf3 {[%clk 0:03:00]}  c5 {[%clk 0:03:00]} 4. d5 {[%clk 0:03:00]}  exd5 {[%clk 0:03:01]} 5. cxd5 {[%clk 0:03:01]}  d6 {[%clk 0:03:02]} 6. Nc3 {[%clk 0:03:02]}  g6 {[%clk 0:03:02]} 7. Bf4 {[%clk 0:03:01]}  a6 {[%clk 0:03:03]} 8. a4 {[%clk 0:03:01]}  Bg7 {[%clk 0:03:03]} 9. e3 {[%clk 0:03:00]}  O-O {[%clk 0:03:04]} 10. h3 {[%clk 0:03:01]}  Qe7 {[%clk 0:03:04]} 11. Nd2 {[%clk 0:03:00]}  Nbd7 {[%clk 0:03:05]} 12. Be2 {[%clk 0:03:00]}  Rb8 {[%clk 0:03:05]} 13. O-O {[%clk 0:03:00]}  Ne8 {[%clk 0:03:06]} 14. e4 {[%clk 0:02:54]}  Nc7 {[%clk 0:03:05]} 15. Nc4 {[%clk 0:02:46]}  Ne5 {[%clk 0:03:05]} 16. Nxe5 {[%clk 0:02:18]}  Bxe5 {[%clk 0:03:04]} 17. Bxe5 {[%clk 0:02:17]}  Qxe5 {[%clk 0:03:05]} 18. f4 {[%clk 0:01:57]}  Qd4+ {[%clk 0:03:04]} 19. Kh1 {[%clk 0:01:56]}  Re8 {[%clk 0:03:02]} 20. Bf3 {[%clk 0:01:55]}  b5 {[%clk 0:03:00]} 21. axb5 {[%clk 0:01:54]}  Nxb5 {[%clk 0:03:01]} 22. Nxb5 {[%clk 0:01:50]}  Rxb5 {[%clk 0:03:00]} 23. Qxd4 {[%clk 0:01:42]}  cxd4 {[%clk 0:03:01]} 24. Rfd1 {[%clk 0:01:42]}  Rb4 {[%clk 0:02:55]} 25. Rac1 {[%clk 0:01:31]}  Bd7 {[%clk 0:02:34]} 26. Rc7 {[%clk 0:01:28]}  Bb5 {[%clk 0:02:31]} 27. Rd2 {[%clk 0:01:16]}  d3 {[%clk 0:02:28]} 28. Rb7 {[%clk 0:01:07]}  Ra4 {[%clk 0:02:04]} 29. Rb6 {[%clk 0:01:02]}  Raxe4 {[%clk 0:01:40]} 30. Bxe4 {[%clk 0:00:57]}  Rxe4 {[%clk 0:01:41]} 31. Kg1 {[%clk 0:00:46]}  Rxf4 {[%clk 0:01:28]} 32. Rxd6 {[%clk 0:00:45]}  Kf8 {[%clk 0:01:27]} 33. Rb6 {[%clk 0:00:40]}  Ke7 {[%clk 0:01:23]} 34. Rf2 {[%clk 0:00:22]}  Rxf2 {[%clk 0:01:20]} 35. Rxb5 {[%clk 0:00:19]}  Rxg2+ {[%clk 0:01:16]} 36. Kxg2 {[%clk 0:00:19]}  axb5 {[%clk 0:01:11]} 37. Kf2 {[%clk 0:00:20]}  Kd6 {[%clk 0:01:12]} 38. Ke3 {[%clk 0:00:20]}  Kxd5 {[%clk 0:01:13]} 39. Kxd3 {[%clk 0:00:21]}  f5 {[%clk 0:01:14]} 40. Ke3 {[%clk 0:00:21]}  g5 {[%clk 0:01:14]} 41. h4 {[%clk 0:00:21]}  gxh4 {[%clk 0:01:14]} 42. Kf4 {[%clk 0:00:21]}  Kc4 {[%clk 0:01:15]} 43. Kxf5 {[%clk 0:00:21]}  h3 {[%clk 0:01:15]} 0-1


[Site "https://www.chess.com"]

[Event "Titled Tuesday Blitz May 16 Early 2023"]
[White "Rozman, Levy"]
[Black "Shvedova, Alexandra"]
[WhiteFideId "2039877"]
[BlackFideId "54154782"]
[WhiteElo "2376"]
[BlackElo "1973"]
[Result "1-0"]
[Round "08"]
[TimeControl "180+2"]
[Date "2023.05.16"]
[WhiteClock "0:00:03"]
[BlackClock "0:00:16"]

1. e4 {[%clk 0:03:00]}  c5 {[%clk 0:02:59]} 2. Nc3 {[%clk 0:02:02]}  Nc6 {[%clk 0:02:57]} 3. Bb5 {[%clk 0:01:47]}  Nd4 {[%clk 0:02:56]} 4. Nf3 {[%clk 0:01:45]}  a6 {[%clk 0:02:50]} 5. Bc4 {[%clk 0:01:39]}  e6 {[%clk 0:02:35]} 6. O-O {[%clk 0:01:37]}  Nf6 {[%clk 0:02:35]} 7. e5 {[%clk 0:01:31]}  d5 {[%clk 0:02:29]} 8. exf6 {[%clk 0:01:08]}  dxc4 {[%clk 0:02:29]} 9. fxg7 {[%clk 0:00:56]}  Bxg7 {[%clk 0:02:30]} 10. d3 {[%clk 0:00:52]}  cxd3 {[%clk 0:02:26]} 11. Qxd3 {[%clk 0:00:44]}  Bd7 {[%clk 0:02:22]} 12. Nxd4 {[%clk 0:00:37]}  cxd4 {[%clk 0:02:21]} 13. Ne4 {[%clk 0:00:31]}  Qc7 {[%clk 0:02:05]} 14. Bg5 {[%clk 0:00:23]}  Bb5 {[%clk 0:01:45]} 15. Qa3 {[%clk 0:00:17]}  Bxf1 {[%clk 0:01:40]} 16. Rxf1 {[%clk 0:00:15]}  Kd7 {[%clk 0:01:21]} 17. Rd1 {[%clk 0:00:14]}  Be5 {[%clk 0:01:09]} 18. g3 {[%clk 0:00:12]}  Qxc2 {[%clk 0:00:57]} 19. Qe7+ {[%clk 0:00:11]}  Kc8 {[%clk 0:00:49]} 20. Rc1 {[%clk 0:00:11]}  Qxc1+ {[%clk 0:00:40]} 21. Bxc1 {[%clk 0:00:11]}  Kb8 {[%clk 0:00:41]} 22. Bf4 {[%clk 0:00:07]}  Bxf4 {[%clk 0:00:41]} 23. gxf4 {[%clk 0:00:08]}  Ka7 {[%clk 0:00:41]} 24. Qc5+ {[%clk 0:00:08]}  Kb8 {[%clk 0:00:40]} 25. Qxd4 {[%clk 0:00:07]}  Rg8+ {[%clk 0:00:39]} 26. Kf1 {[%clk 0:00:07]}  a5 {[%clk 0:00:35]} 27. Nf6 {[%clk 0:00:07]}  Rc8 {[%clk 0:00:30]} 28. Qd6+ {[%clk 0:00:04]}  Ka7 {[%clk 0:00:30]} 29. Nd7 {[%clk 0:00:03]}  Rc6 {[%clk 0:00:29]} 30. Qd4+ {[%clk 0:00:04]}  b6 {[%clk 0:00:29]} 31. Ne5 {[%clk 0:00:04]}  Rc1+ {[%clk 0:00:27]} 32. Kg2 {[%clk 0:00:04]}  Rac8 {[%clk 0:00:27]} 33. a4 {[%clk 0:00:04]}  R8c7 {[%clk 0:00:25]} 34. Nf3 {[%clk 0:00:02]}  R1c4 {[%clk 0:00:24]} 35. Qd1 {[%clk 0:00:02]}  Rxf4 {[%clk 0:00:23]} 36. h3 {[%clk 0:00:03]}  Rfc4 {[%clk 0:00:22]} 37. b3 {[%clk 0:00:03]}  Rc1 {[%clk 0:00:22]} 38. Qd3 {[%clk 0:00:02]}  R1c3 {[%clk 0:00:23]} 39. Qxh7 {[%clk 0:00:02]}  Rxb3 {[%clk 0:00:22]} 40. Nd4 {[%clk 0:00:02]}  Rb4 {[%clk 0:00:19]} 41. Nb5+ {[%clk 0:00:03]}  Rxb5 {[%clk 0:00:19]} 42. axb5 {[%clk 0:00:04]}  a4 {[%clk 0:00:19]} 43. Qe4 {[%clk 0:00:04]}  a3 {[%clk 0:00:19]} 44. Qa4+ {[%clk 0:00:04]}  Kb7 {[%clk 0:00:20]} 45. Qa6+ {[%clk 0:00:04]}  Kb8 {[%clk 0:00:20]} 46. Qxa3 {[%clk 0:00:05]}  Rc5 {[%clk 0:00:19]} 47. Qd3 {[%clk 0:00:04]}  Kc7 {[%clk 0:00:19]} 48. h4 {[%clk 0:00:04]}  Rd5 {[%clk 0:00:18]} 49. Qxd5 {[%clk 0:00:02]}  exd5 {[%clk 0:00:16]} 50. h5 {[%clk 0:00:03]} 1-0


[Site "https://www.chess.com"]

[Event "Titled Tuesday Blitz May 16 Early 2023"]
[White "Halkias, Stelios"]
[Black "Estrada Nieto, Julian"]
[WhiteFideId "4201809"]
[BlackFideId "5101018"]
[WhiteElo "2451"]
[BlackElo "2161"]
[Result "1-0"]
[Round "08"]
[TimeControl "180+2"]
[Date "2023.05.16"]
[WhiteClock "0:00:42"]
[BlackClock "0:00:00"]

1. Nf3 {[%clk 0:02:55]}  d5 {[%clk 0:02:59]} 2. d4 {[%clk 0:02:55]}  Nf6 {[%clk 0:02:59]} 3. c4 {[%clk 0:02:55]}  dxc4 {[%clk 0:03:00]} 4. e3 {[%clk 0:02:55]}  e6 {[%clk 0:03:00]} 5. Bxc4 {[%clk 0:02:53]}  c5 {[%clk 0:03:01]} 6. O-O {[%clk 0:02:53]}  a6 {[%clk 0:03:01]} 7. Re1 {[%clk 0:02:53]}  Nc6 {[%clk 0:02:59]} 8. Nc3 {[%clk 0:02:50]}  Be7 {[%clk 0:02:48]} 9. d5 {[%clk 0:02:28]}  exd5 {[%clk 0:02:47]} 10. Nxd5 {[%clk 0:02:27]}  Nxd5 {[%clk 0:02:47]} 11. Bxd5 {[%clk 0:02:27]}  O-O {[%clk 0:02:43]} 12. e4 {[%clk 0:02:27]}  Bg4 {[%clk 0:02:31]} 13. h3 {[%clk 0:02:24]}  Bxf3 {[%clk 0:02:22]} 14. Qxf3 {[%clk 0:02:24]}  Nd4 {[%clk 0:02:07]} 15. Qd1 {[%clk 0:02:21]}  Qb6 {[%clk 0:01:47]} 16. Bd2 {[%clk 0:02:17]}  Rab8 {[%clk 0:01:27]} 17. Bc3 {[%clk 0:02:16]}  Nb5 {[%clk 0:01:11]} 18. Be5 {[%clk 0:02:05]}  Bd6 {[%clk 0:01:06]} 19. Bxd6 {[%clk 0:01:59]}  Qxd6 {[%clk 0:01:02]} 20. e5 {[%clk 0:01:40]}  Qd8 {[%clk 0:01:02]} 21. Rc1 {[%clk 0:01:34]}  b6 {[%clk 0:01:02]} 22. Bc4 {[%clk 0:01:22]}  Nc7 {[%clk 0:00:57]} 23. Qg4 {[%clk 0:01:20]}  Qe7 {[%clk 0:00:54]} 24. Rcd1 {[%clk 0:01:14]}  Rbd8 {[%clk 0:00:54]} 25. f4 {[%clk 0:01:14]}  b5 {[%clk 0:00:50]} 26. Be2 {[%clk 0:01:13]}  f5 {[%clk 0:00:34]} 27. Qf3 {[%clk 0:01:09]}  Ne6 {[%clk 0:00:31]} 28. Bd3 {[%clk 0:00:58]}  Nd4 {[%clk 0:00:30]} 29. Qe3 {[%clk 0:00:58]}  a5 {[%clk 0:00:27]} 30. b3 {[%clk 0:00:57]}  h6 {[%clk 0:00:26]} 31. Kh2 {[%clk 0:00:57]}  Rd7 {[%clk 0:00:25]} 32. a4 {[%clk 0:00:56]}  b4 {[%clk 0:00:23]} 33. Bc4+ {[%clk 0:00:55]}  Kh7 {[%clk 0:00:23]} 34. Rd3 {[%clk 0:00:53]}  Rfd8 {[%clk 0:00:23]} 35. Red1 {[%clk 0:00:53]}  g5 {[%clk 0:00:21]} 36. e6 {[%clk 0:00:45]}  Rd6 {[%clk 0:00:20]} 37. fxg5 {[%clk 0:00:45]}  hxg5 {[%clk 0:00:19]} 38. Qe5 {[%clk 0:00:44]}  Kg6 {[%clk 0:00:17]} 39. Qxc5 {[%clk 0:00:44]}  f4 {[%clk 0:00:11]} 40. Rxd4 {[%clk 0:00:42]}  Rxd4 {[%clk 0:00:10]} 41. Qxe7 {[%clk 0:00:42]}  Rxd1 {[%clk 0:00:11]} 42. Qf7+ {[%clk 0:00:42]}  Kh6 {[%clk 0:00:10]} 43. Qf6+ {[%clk 0:00:43]}  Kh7 {[%clk 0:00:00]} 44. e7 {[%clk 0:00:42]} 1-0


[Site "https://www.chess.com"]

[Event "Titled Tuesday Blitz May 16 Early 2023"]
[White "Ismagilov, Damir"]
[Black "Ladan, Nicholas"]
[WhiteFideId "34199982"]
[BlackFideId "30918855"]
[WhiteElo "2143"]
[BlackElo "2167"]
[Result "1/2-1/2"]
[Round "08"]
[TimeControl "180+2"]
[Date "2023.05.16"]
[WhiteClock "0:00:34"]
[BlackClock "0:00:19"]

1. f4 {[%clk 0:03:00]}  d5 {[%clk 0:02:59]} 2. Nf3 {[%clk 0:03:00]}  g6 {[%clk 0:02:56]} 3. g3 {[%clk 0:02:56]}  Bg7 {[%clk 0:02:56]} 4. Bg2 {[%clk 0:02:57]}  Nh6 {[%clk 0:02:56]} 5. O-O {[%clk 0:02:58]}  Nf5 {[%clk 0:02:57]} 6. d3 {[%clk 0:02:58]}  h5 {[%clk 0:02:48]} 7. e4 {[%clk 0:02:57]}  dxe4 {[%clk 0:02:47]} 8. dxe4 {[%clk 0:02:58]}  Nd4 {[%clk 0:02:47]} 9. c3 {[%clk 0:02:48]}  Nxf3+ {[%clk 0:02:46]} 10. Bxf3 {[%clk 0:02:48]}  Qxd1 {[%clk 0:02:46]} 11. Rxd1 {[%clk 0:02:49]}  Bg4 {[%clk 0:02:45]} 12. Bxg4 {[%clk 0:02:44]}  hxg4 {[%clk 0:02:46]} 13. Na3 {[%clk 0:02:44]}  Nd7 {[%clk 0:02:43]} 14. Nb5 {[%clk 0:02:40]}  O-O-O {[%clk 0:02:39]} 15. Nxa7+ {[%clk 0:02:38]}  Kb8 {[%clk 0:02:38]} 16. Nb5 {[%clk 0:02:38]}  Nc5 {[%clk 0:02:38]} 17. Be3 {[%clk 0:02:19]}  Nxe4 {[%clk 0:02:35]} 18. Bd4 {[%clk 0:02:19]}  Bxd4+ {[%clk 0:02:34]} 19. Nxd4 {[%clk 0:02:20]}  c5 {[%clk 0:02:19]} 20. Nc2 {[%clk 0:02:20]}  Nd2 {[%clk 0:02:18]} 21. Ne1 {[%clk 0:02:08]}  Nc4 {[%clk 0:02:06]} 22. b3 {[%clk 0:01:38]}  Ne3 {[%clk 0:02:05]} 23. Rd3 {[%clk 0:01:38]}  Rxd3 {[%clk 0:01:54]} 24. Nxd3 {[%clk 0:01:39]}  Rd8 {[%clk 0:01:45]} 25. Ne5 {[%clk 0:01:35]}  f6 {[%clk 0:01:30]} 26. Nxg6 {[%clk 0:01:34]}  Rd2 {[%clk 0:01:23]} 27. Nxe7 {[%clk 0:01:25]}  Nd1 {[%clk 0:01:17]} 28. Ng8 {[%clk 0:01:15]}  f5 {[%clk 0:01:04]} 29. Ne7 {[%clk 0:01:14]}  Nf2 {[%clk 0:01:03]} 30. Nxf5 {[%clk 0:00:58]}  Nh3+ {[%clk 0:01:02]} 31. Kh1 {[%clk 0:00:58]}  Nf2+ {[%clk 0:01:02]} 32. Kg1 {[%clk 0:00:57]}  Nh3+ {[%clk 0:01:03]} 33. Kf1 {[%clk 0:00:52]}  Rxh2 {[%clk 0:01:01]} 34. Rd1 {[%clk 0:00:52]}  Rxa2 {[%clk 0:00:43]} 35. Ne3 {[%clk 0:00:49]}  Rf2+ {[%clk 0:00:41]} 36. Ke1 {[%clk 0:00:49]}  Rf3 {[%clk 0:00:41]} 37. Nxg4 {[%clk 0:00:47]}  Rxg3 {[%clk 0:00:40]} 38. Ne5 {[%clk 0:00:39]}  Rxc3 {[%clk 0:00:33]} 39. Rd3 {[%clk 0:00:39]}  Rxd3 {[%clk 0:00:22]} 40. Nxd3 {[%clk 0:00:40]}  b5 {[%clk 0:00:21]} 41. Kf1 {[%clk 0:00:40]}  c4 {[%clk 0:00:21]} 42. bxc4 {[%clk 0:00:36]}  bxc4 {[%clk 0:00:22]} 43. Nb2 {[%clk 0:00:34]}  c3 {[%clk 0:00:22]} 44. Nd3 {[%clk 0:00:34]}  c2 {[%clk 0:00:20]} 45. Ke1 {[%clk 0:00:33]}  Nxf4 {[%clk 0:00:20]} 46. Nc1 {[%clk 0:00:34]}  Nd3+ {[%clk 0:00:20]} 47. Nxd3 {[%clk 0:00:34]}  c1=N {[%clk 0:00:19]} 1/2-1/2


[Site "https://www.chess.com"]

[Event "Titled Tuesday Blitz May 16 Early 2023"]
[White "egorchess95"]
[Black "Liu, Casper"]
[BlackFideId "1454153"]
[WhiteElo "2565"]
[BlackElo "2221"]
[Result "1-0"]
[Round "08"]
[TimeControl "180+2"]
[Date "2023.05.16"]
[WhiteClock "0:01:30"]
[BlackClock "0:00:00"]

1. e4 {[%clk 0:03:00]}  c5 {[%clk 0:02:54]} 2. Nf3 {[%clk 0:03:01]}  d6 {[%clk 0:02:55]} 3. d4 {[%clk 0:03:02]}  cxd4 {[%clk 0:02:56]} 4. Qxd4 {[%clk 0:03:02]}  Nf6 {[%clk 0:02:56]} 5. Nc3 {[%clk 0:03:03]}  Nc6 {[%clk 0:02:56]} 6. Bb5 {[%clk 0:03:03]}  Bd7 {[%clk 0:02:56]} 7. Bxc6 {[%clk 0:03:04]}  bxc6 {[%clk 0:02:57]} 8. e5 {[%clk 0:03:02]}  dxe5 {[%clk 0:02:57]} 9. Nxe5 {[%clk 0:03:02]}  g6 {[%clk 0:02:51]} 10. Bg5 {[%clk 0:02:59]}  Bg7 {[%clk 0:02:50]} 11. Rd1 {[%clk 0:02:50]}  Be6 {[%clk 0:02:29]} 12. Qxd8+ {[%clk 0:02:47]}  Rxd8 {[%clk 0:02:28]} 13. Rxd8+ {[%clk 0:02:48]}  Kxd8 {[%clk 0:02:29]} 14. Nxc6+ {[%clk 0:02:48]}  Kc7 {[%clk 0:02:26]} 15. Nxa7 {[%clk 0:02:48]}  Kb6 {[%clk 0:01:56]} 16. Nab5 {[%clk 0:02:42]}  Bc4 {[%clk 0:01:52]} 17. Be3+ {[%clk 0:02:40]}  Ka6 {[%clk 0:01:43]} 18. Na3 {[%clk 0:02:38]}  Be6 {[%clk 0:01:16]} 19. Bd4 {[%clk 0:02:24]}  Rd8 {[%clk 0:01:02]} 20. Be5 {[%clk 0:02:24]}  Bh6 {[%clk 0:00:55]} 21. O-O {[%clk 0:02:19]}  Nd7 {[%clk 0:00:43]} 22. Bd4 {[%clk 0:02:13]}  Bf5 {[%clk 0:00:34]} 23. Rd1 {[%clk 0:02:11]}  Rb8 {[%clk 0:00:26]} 24. Nc4 {[%clk 0:02:02]}  Bxc2 {[%clk 0:00:23]} 25. Re1 {[%clk 0:02:03]}  e6 {[%clk 0:00:19]} 26. b3 {[%clk 0:02:00]}  Bd3 {[%clk 0:00:18]} 27. Nb2 {[%clk 0:01:57]}  Bf5 {[%clk 0:00:16]} 28. Nca4 {[%clk 0:01:54]}  Rc8 {[%clk 0:00:16]} 29. Nc4 {[%clk 0:01:54]}  Bd3 {[%clk 0:00:15]} 30. Nab2 {[%clk 0:01:55]}  Bf5 {[%clk 0:00:13]} 31. h3 {[%clk 0:01:51]}  Bf4 {[%clk 0:00:03]} 32. Be3 {[%clk 0:01:43]}  Bb8 {[%clk 0:00:01]} 33. g4 {[%clk 0:01:43]}  Bc2 {[%clk 0:00:01]} 34. Bd2 {[%clk 0:01:37]}  Nf6 {[%clk 0:00:01]} 35. f3 {[%clk 0:01:30]}  Nd5 {[%clk 0:00:00]} 36. Rc1 {[%clk 0:01:30]} 1-0


[Site "https://www.chess.com"]